fUSD/lending_fUSD_20260427
["ID","MTS","AMOUNT","RATE_DAILY","PERIOD"]
[421240348,1777287052074,-656.37,0.0003315,120]
[421240349,1777287052084,-924.49,0.0003315,120]
[421240350,1777287052095,-1754.83,0.0003315,120]
[421240351,1777287052105,-816.58,0.0003315,120]
[421240352,1777287052115,-1699.99,0.0003315,120]
[421240353,1777287052125,-963.43,0.0003315,120]
[421240354,1777287052135,-988.21,0.0003315,120]
[421240355,1777287052272,-500.0,0.0003315,120]
[421240356,1777287052293,-803.53,0.0003315,120]
[421240357,1777287052304,-983.75,0.0003315,120]
[421240358,1777287052314,-806.48,0.0003315,120]
[421240359,1777287052324,-1721.56,0.0003315,120]
[421240361,1777287052334,-500.0,0.0003315,120]
[421240362,1777287052345,-899.89,0.0003315,120]
[421240363,1777287052354,-1666.52,0.0003315,120]
[421240364,1777287052364,-500.0,0.0003315,120]
[421240365,1777287052374,-500.0,0.0003315,120]
[421240366,1777287052384,-362.63417633,0.0003315,120]
[421240367,1777287052394,-903.54,0.0003315,120]
[421240368,1777287052403,-640.16,0.0003315,120]
[421240369,1777287052412,-2805.42,0.0003315,120]
[421240370,1777287052422,-500.0,0.0003315,120]
[421240371,1777287052432,-500.0,0.0003315,120]
[421240372,1777287052441,-1658.74,0.0003315,120]
[421240373,1777287052451,-500.0,0.0003315,120]
[421240374,1777287052461,-500.0,0.0003315,120]
[421240375,1777287052471,-507.17,0.0003315,120]
[421240376,1777287052480,-500.0,0.0003315,120]
[421240377,1777287052490,-760.12,0.0003315,120]
[421240378,1777287052500,-1131.48,0.0003315,120]
[421240379,1777287052510,-500.0,0.0003315,120]
[421240380,1777287052519,-500.0,0.0003315,120]
[421240381,1777287052528,-1275.35,0.0003315,120]
[421240382,1777287052539,-1746.47,0.0003315,120]
[421240383,1777287052548,-498.61120962,0.0003315,120]
[421240384,1777287052558,-1186.63,0.0003315,120]
[421240385,1777287052568,-500.0,0.0003315,120]
[421240386,1777287052579,-564.77859992,0.0003315,120]
[421240387,1777287052589,-500.0,0.0003315,120]
[421240388,1777287052599,-726.02,0.0003315,120]
[421240389,1777287052608,-500.0,0.0003315,120]
[421240390,1777287052618,-857.8,0.0003315,120]
[421240392,1777287052628,-500.0,0.0003315,120]
[421240393,1777287052638,-492.02014229,0.0003315,120]
[421240394,1777287052647,-942.29,0.0003315,120]
[421240395,1777287052657,-397.14448528,0.0003315,120]
[421240396,1777287052667,-500.0,0.0003315,120]
[421240397,1777287052677,-500.0,0.0003315,90]
[421240398,1777287052687,-888.77,0.0003315,120]
[421240399,1777287052696,-615.52,0.0003315,120]
[421240400,1777287052706,-500.0,0.0003315,120]
[421240401,1777287052715,-453.55190481,0.0003315,120]
[421240402,1777287052725,-691.21,0.0003315,120]
[421240403,1777287052735,-1549.89,0.0003315,120]
[421240404,1777287052745,-500.0,0.0003315,120]
[421240405,1777287052755,-500.0,0.0003315,120]
[421240406,1777287052765,-597.1,0.0003315,120]
[421240407,1777287052775,-500.0,0.0003315,120]
[421240408,1777287052784,-500.0,0.0003315,120]
[421240409,1777287052794,-516.45,0.0003315,120]
[421240410,1777287052804,-500.0,0.0003315,120]
[421240411,1777287052814,-646.3,0.0003315,120]
[421240412,1777287052824,-646.61545782,0.0003315,120]
[421240413,1777287052834,-996.25,0.0003315,120]
[421240414,1777287052844,-73.00070435,0.0003315,120]
[421240418,1777287053618,-426.99929565,0.0003315,120]
[421240419,1777287053627,-729.86,0.0003315,120]
[421240420,1777287053636,-500.0,0.0003315,120]
[421240421,1777287053645,-500.0,0.0003315,120]
[421240422,1777287053654,-862.2,0.0003315,120]
[421240423,1777287053663,-902.68,0.0003315,120]
[421240424,1777287053672,-500.0,0.0003315,120]
[421240425,1777287053681,-932.95,0.0003315,120]
[421240426,1777287053690,-501.5,0.0003315,120]
[421240427,1777287053699,-932.07,0.0003315,120]
[421240428,1777287053708,-436.08672398,0.0003315,120]
[421240429,1777287053717,-198.1483265,0.0003315,120]
[421240430,1777287053726,-500.0,0.0003315,120]
[421240431,1777287053735,-946.6,0.0003315,120]
[421240432,1777287053744,-638.61,0.0003315,120]
[421240433,1777287053754,-500.0,0.0003315,120]
[421240434,1777287053763,-404.5138532,0.0003315,120]
[421240435,1777287053865,500.0,0.00032876,120]
[421240438,1777287054709,-238.3292676,0.00012996,2]
[421240439,1777287054718,-444.38778338,0.00027397,10]
[421240440,1777287054730,-9728.34221662,0.00027397,10]
[421240441,1777287054740,-95.4861468,0.0003315,120]
[421240442,1777287054749,-1014.18,0.0003315,120]
[421240443,1777287054759,-97.7733804,0.0003315,120]
[421240444,1777287054807,500.0,0.00032876,120]
[421240446,1777287054827,-617.1166196,0.0003315,120]
[421240447,1777287054836,-596.0433804,0.0003315,120]
[421240453,1777287056525,-1392.1266196,0.0003315,120]
[421240454,1777287056535,-500.0,0.0003315,120]
[421240455,1777287056544,-500.0,0.0003315,120]
[421240456,1777287056555,-500.0,0.0003315,120]
[421240457,1777287056564,-563.81,0.0003315,120]
[421240458,1777287056574,-500.0,0.0003315,120]
[421240459,1777287056583,-500.0,0.0003315,120]
[421240460,1777287056592,-500.0,0.0003315,120]
[421240461,1777287056601,-500.0,0.0003315,120]
[421240462,1777287056610,-500.0,0.0003315,7]
[421240463,1777287056620,-500.0,0.0003315,120]
[421240464,1777287056629,-500.0,0.0003315,120]
[421240465,1777287056639,-500.0,0.0003315,120]
[421240466,1777287056648,-885.91,0.0003315,120]
[421240467,1777287056657,-1640.34,0.0003315,120]
[421240468,1777287056666,-500.0,0.0003315,120]
[421240469,1777287056675,-500.0,0.0003315,120]
[421240470,1777287056684,-891.92,0.0003315,120]
[421240471,1777287056693,-669.56,0.0003315,120]
[421240472,1777287056703,-500.0,0.0003315,120]
[421240473,1777287056712,-500.78794202,0.0003315,120]
[421240474,1777287056721,-500.0,0.0003315,120]
[421240475,1777287056730,-1390.78,0.0003315,120]
[421240476,1777287056739,-500.0,0.0003315,60]
[421240477,1777287056748,-500.0,0.0003315,120]
[421240478,1777287056757,-500.0,0.0003315,120]
[421240479,1777287056766,-500.0,0.0003315,120]
[421240480,1777287056776,-500.0,0.0003315,120]
[421240481,1777287056785,-668.1,0.0003315,120]
[421240482,1777287056794,-500.0,0.0003315,120]
[421240483,1777287056803,-500.0,0.0003315,120]
[421240484,1777287056812,-521.82267142,0.0003315,120]
[421240485,1777287056821,-500.0,0.0003315,120]
[421240486,1777287056833,-553.69182192,0.0003315,120]
[421240487,1777287056842,-500.0,0.0003315,120]
[421240488,1777287056852,-660.18,0.0003315,120]
[421240489,1777287056861,-500.0,0.0003315,120]
[421240490,1777287056870,-500.0,0.0003315,120]
[421240491,1777287056879,-691.69,0.0003315,120]
[421240492,1777287056888,-500.0,0.0003315,120]
[421240493,1777287056897,-691.03,0.0003315,120]
[421240494,1777287056906,-500.0,0.0003315,120]
[421240495,1777287056915,-618.59,0.0003315,30]
[421240496,1777287056925,-572.41,0.0003315,120]
[421240497,1777287056934,-500.0,0.0003315,120]
[421240498,1777287056944,-953.58,0.0003315,120]
[421240499,1777287056953,-922.63,0.0003315,120]
[421240500,1777287056963,-4917.9,0.0003315,120]
[421240501,1777287056972,-525.11,0.0003315,120]
[421240502,1777287056982,-551.36,0.0003315,120]
[421240503,1777287056991,-500.0,0.0003315,120]
[421240504,1777287057001,-500.0,0.0003315,14]
[421240505,1777287057010,-500.0,0.0003315,120]
[421240506,1777287057019,-840.29,0.0003315,120]
[421240507,1777287057028,-500.0,0.0003315,120]
[421240508,1777287057038,-739.88,0.0003315,120]
[421240509,1777287057048,-919.84,0.0003315,120]
[421240510,1777287057057,-1800.54,0.0003315,120]
[421240511,1777287057066,-500.0,0.0003315,120]
[421240512,1777287057075,-1344.25,0.0003315,120]
[421240513,1777287057084,-500.0,0.0003315,30]
[421240514,1777287057094,-500.0,0.0003315,120]
[421240515,1777287057103,-500.0,0.0003315,120]
[421240516,1777287057112,-500.0,0.0003315,120]
[421240517,1777287057122,-500.0,0.0003315,120]
[421240518,1777287057131,-500.0,0.0003315,120]
[421240519,1777287057140,-500.0,0.0003315,120]
[421240520,1777287057149,-916.78,0.0003315,120]
[421240521,1777287057158,-500.0,0.0003315,60]
[421240522,1777287057167,-500.0,0.0003315,120]
[421240523,1777287057177,-502.35538336,0.0003315,120]
[421240524,1777287057187,-1345.97,0.0003315,120]
[421240525,1777287057197,-1078.03,0.0003315,120]
[421240526,1777287057207,-502.66725313,0.0003315,120]
[421240527,1777287057216,-500.0,0.0003315,120]
[421240528,1777287057225,-500.0,0.0003315,14]
[421240529,1777287057234,-587.1880354,0.0003315,120]
[421240530,1777287057244,-500.0,0.0003315,12]
[421240531,1777287057253,-500.0,0.0003315,120]
[421240532,1777287057262,-947.63,0.0003315,120]
[421240533,1777287057271,-549.91,0.0003315,120]
[421240534,1777287057280,-500.0,0.0003315,120]
[421240535,1777287057290,-500.0,0.0003315,120]
[421240536,1777287057299,-500.0,0.0003315,120]
[421240537,1777287057308,-748.29,0.0003315,120]
[421240538,1777287057317,-500.0,0.0003315,120]
[421240539,1777287057327,-1742.02,0.0003315,120]
[421240540,1777287057335,-500.0,0.0003315,120]
[421240541,1777287057345,-980.13,0.0003315,120]
[421240542,1777287057354,-233.7613601,0.0003315,120]
[421240543,1777287057364,-547.89,0.0003315,120]
[421240544,1777287057372,-500.0,0.0003315,120]
[421240545,1777287057382,-500.0,0.0003315,120]
[421240546,1777287057391,-500.0,0.0003315,120]
[421240547,1777287057400,-808.71,0.0003315,120]
[421240548,1777287057409,-697.0,0.0003315,120]
[421240549,1777287057418,-500.0,0.0003315,120]
[421240550,1777287057427,-500.0,0.0003315,120]
[421240551,1777287057436,-500.0,0.0003315,30]
[421240552,1777287057445,-500.0,0.0003315,120]
[421240553,1777287057454,-500.0,0.0003315,120]
[421240554,1777287057463,-594.7789098,0.0003315,120]
[421240555,1777287057471,-698.74,0.0003315,120]
[421240556,1777287057480,-451.66286267,0.0003315,120]
[421240557,1777287057489,-500.44317539,0.0003315,120]
[421240558,1777287057498,-861.18,0.0003315,120]
[421240559,1777287057507,-500.0,0.0003315,120]
[421240560,1777287057516,-599.72,0.0003315,120]
[421240561,1777287057526,-971.15,0.0003315,120]
[421240562,1777287057535,-1898.91,0.0003315,120]
[421240563,1777287057543,-516.89048534,0.0003315,120]
[421240564,1777287057552,-500.0,0.0003315,120]
[421240565,1777287057561,-500.94493317,0.0003315,120]
[421240566,1777287057570,-2008.02,0.0003315,120]
[421240567,1777287057579,-511.92764603,0.0003315,120]
[421240568,1777287057588,-634.80793844,0.0003315,120]
[421240569,1777287057597,-500.0,0.0003315,120]
[421240570,1777287057606,-500.0,0.0003315,120]
[421240571,1777287057615,-504.48123421,0.0003315,120]
[421240572,1777287057625,-500.0,0.0003315,120]
[421240573,1777287057634,-546.88,0.0003315,120]
[421240574,1777287057643,-500.0,0.0003315,120]
[421240575,1777287057652,-500.0,0.0003315,120]
[421240576,1777287057661,-500.0,0.0003315,120]
[421240577,1777287057670,-933.2,0.0003315,120]
[421240578,1777287057679,-502.07212246,0.0003315,120]
[421240579,1777287057687,-923.43,0.0003315,120]
[421240580,1777287057696,-506.3678048,0.0003315,120]
[421240581,1777287057706,-814.23,0.0003315,7]
[421240582,1777287057715,-500.0,0.0003315,120]
[421240583,1777287057725,-505.67809326,0.0003315,120]
[421240584,1777287057734,-545.89,0.0003315,120]
[421240585,1777287057743,-500.0,0.0003315,120]
[421240586,1777287057752,-500.0,0.0003315,120]
[421240587,1777287057762,-500.0,0.0003315,120]
[421240588,1777287057771,-607.22,0.0003315,120]
[421240589,1777287057780,-501.64296874,0.0003315,120]
[421240590,1777287057789,-501.72624152,0.0003315,120]
[421240591,1777287057798,-500.0,0.0003315,120]
[421240592,1777287057807,-502.00246033,0.0003315,120]
[421240593,1777287057816,-1022.01,0.0003315,120]
[421240594,1777287057826,-1403.37,0.0003315,120]
[421240595,1777287057835,-500.0,0.0003315,120]
[421240596,1777287057844,-500.0,0.0003315,120]
[421240597,1777287057853,-500.0,0.0003315,120]
[421240598,1777287057862,-571.92,0.0003315,120]
[421240599,1777287057872,-500.0,0.0003315,120]
[421240600,1777287057881,-996.98,0.0003315,120]
[421240601,1777287057891,-500.0,0.0003315,120]
[421240602,1777287057900,-500.0,0.0003315,120]
[421240603,1777287057910,-500.0,0.0003315,120]
[421240604,1777287057919,-500.0,0.0003315,120]
[421240605,1777287057928,-500.0,0.0003315,120]
[421240606,1777287057938,-500.0,0.0003315,120]
[421240607,1777287057947,-500.0,0.0003315,120]
[421240608,1777287057956,-500.0,0.0003315,120]
[421240609,1777287057965,-2027.39,0.0003315,120]
[421240610,1777287057974,-500.0,0.0003315,120]
[421240611,1777287057984,-500.0,0.0003315,120]
[421240612,1777287057993,-500.0,0.0003315,120]
[421240613,1777287058003,-544.78,0.0003315,120]
[421240614,1777287058013,-500.0,0.0003315,120]
[421240615,1777287058022,-1173.63,0.0003315,120]
[421240616,1777287058031,-500.0,0.0003315,120]
[421240617,1777287058040,-500.0,0.0003315,120]
[421240618,1777287058050,-580.92,0.0003315,120]
[421240619,1777287058060,-500.0,0.0003315,120]
[421240620,1777287058069,-500.0,0.0003315,120]
[421240621,1777287058078,-500.0,0.0003315,120]
[421240622,1777287058087,-957.19,0.0003315,120]
[421240623,1777287058097,-500.0,0.0003315,120]
[421240624,1777287058106,-500.0,0.0003315,120]
[421240625,1777287058115,-500.0,0.0003315,120]
[421240626,1777287058124,-500.0,0.0003315,120]
[421240627,1777287058133,-1129.42,0.0003315,120]
[421240628,1777287058142,-500.0,0.0003315,120]
[421240629,1777287058152,-549.6,0.0003315,120]
[421240630,1777287058161,-500.0,0.0003315,120]
[421240631,1777287058170,-500.0,0.0003315,120]
[421240632,1777287058179,-500.0,0.0003315,120]
[421240633,1777287058188,-500.0,0.0003315,120]
[421240634,1777287058197,-500.0,0.0003315,120]
[421240635,1777287058207,-500.0,0.0003315,120]
[421240636,1777287058216,-957.72,0.0003315,120]
[421240637,1777287058226,-2273.93,0.0003315,120]
[421240638,1777287058235,-500.0,0.0003315,120]
[421240639,1777287058244,-500.0,0.0003315,120]
[421240640,1777287058253,-531.34,0.0003315,120]
[421240641,1777287058262,-500.0,0.0003315,120]
[421240642,1777287058271,-500.0,0.0003315,120]
[421240643,1777287058280,-500.0,0.0003315,120]
[421240644,1777287058290,-500.0,0.0003315,120]
[421240645,1777287058299,-826.33,0.0003315,120]
[421240646,1777287058308,-509.36,0.0003315,120]
[421240647,1777287058317,-500.0,0.0003315,120]
[421240648,1777287058327,-542.30576284,0.0003315,120]
[421240649,1777287058335,-1144.83,0.0003315,120]
[421240650,1777287058344,-870.72,0.0003315,120]
[421240651,1777287058353,-500.0,0.0003315,120]
[421240652,1777287058362,-500.0,0.0003315,120]
[421240653,1777287058371,-500.0,0.0003315,120]
[421240654,1777287058379,-500.0,0.0003315,120]
[421240655,1777287058388,-1987.57,0.0003315,120]
[421240656,1777287058398,-1889.91,0.0003315,120]
[421240657,1777287058407,-997.41,0.0003315,120]
[421240658,1777287058417,-500.0,0.0003315,120]
[421240659,1777287058429,-500.0,0.0003315,16]
[421240660,1777287058438,-645.47,0.0003315,120]
[421240661,1777287058447,-551.39,0.0003315,120]
[421240662,1777287058458,-503.34324746,0.0003315,120]
[421240663,1777287058468,-500.0,0.0003315,120]
[421240664,1777287058477,-500.0,0.0003315,120]
[421240665,1777287058486,-502.67517896,0.0003315,120]
[421240666,1777287058495,-500.0,0.0003315,120]
[421240667,1777287058505,-607.71,0.0003315,120]
[421240668,1777287058514,-500.0,0.0003315,120]
[421240669,1777287058523,-506.35394921,0.0003315,120]
[421240670,1777287058533,-500.0,0.0003315,120]
[421240671,1777287058542,-2000.0,0.0003315,39]
[421240672,1777287058552,-2000.0,0.0003315,39]
[421240673,1777287058562,-500.0,0.0003315,120]
[421240674,1777287058571,-1410.28,0.0003315,120]
[421240675,1777287058580,-500.0,0.0003315,120]
[421240676,1777287058589,-500.0,0.0003315,120]
[421240677,1777287058598,-500.0,0.0003315,120]
[421240678,1777287058608,-1075.28,0.0003315,120]
[421240679,1777287058618,-500.0,0.0003315,120]
[421240680,1777287058628,-512.2,0.0003315,120]
[421240681,1777287058637,-500.0,0.0003315,120]
[421240682,1777287058646,-500.0,0.0003315,120]
[421240683,1777287058656,-500.0,0.0003315,120]
[421240684,1777287058664,-571.84,0.0003315,120]
[421240685,1777287058674,-500.0,0.0003315,7]
[421240686,1777287058684,-500.0,0.0003315,120]
[421240687,1777287058693,-670.88,0.0003315,120]
[421240688,1777287058703,-927.87,0.0003315,120]
[421240689,1777287058712,-500.0,0.0003315,120]
[421240690,1777287058721,-733.46,0.0003315,120]
[421240691,1777287058731,-500.0,0.0003315,120]
[421240692,1777287058740,-845.56,0.0003315,120]
[421240693,1777287058750,-500.0,0.0003315,120]
[421240694,1777287058760,-500.0,0.0003315,120]
[421240695,1777287058769,-500.0,0.0003315,120]
[421240696,1777287058778,-1708.75,0.0003315,120]
[421240697,1777287058788,-598.2050782,0.0003315,120]
[421240698,1777287058798,-243.394704,0.0003315,7]
[421240699,1777287058808,-500.0,0.0003315,120]
[421240700,1777287058817,-500.0,0.0003315,120]
[421240701,1777287058828,-243.394704,0.0003315,7]
[421240702,1777287058839,-1389.02,0.0003315,120]
[421240703,1777287058850,-721.4,0.0003315,120]
[421240704,1777287058859,-969.99,0.0003315,120]
[421240705,1777287058868,-500.0,0.0003315,120]
[421240706,1777287058878,-832.2,0.0003315,120]
[421240707,1777287058887,-243.394704,0.0003315,7]
[421240708,1777287058896,-500.0,0.0003315,120]
[421240709,1777287058907,-1256.96,0.0003315,120]
[421240710,1777287058916,-822.73,0.0003315,120]
[421240711,1777287058926,-243.394704,0.0003315,7]
[421240712,1777287058935,-500.0,0.0003315,120]
[421240713,1777287058944,-1697.87,0.0003315,120]
[421240714,1777287058954,-500.0,0.0003315,120]
[421240715,1777287058964,-500.0,0.0003315,120]
[421240716,1777287058973,-725.79,0.0003315,120]
[421240717,1777287058983,-767.5,0.0003315,120]
[421240718,1777287058992,-740.81,0.0003315,120]
[421240719,1777287059003,-704.65,0.0003315,120]
[421240720,1777287059012,-500.0,0.0003315,120]
[421240721,1777287059022,-367.58231224,0.0003315,120]
[421240722,1777287059032,-874.64,0.0003315,120]
[421240723,1777287059042,-500.0,0.0003315,120]
[421240724,1777287059051,-500.0,0.0003315,120]
[421240725,1777287059061,-539.51,0.0003315,120]
[421240726,1777287059073,-1571.63,0.0003315,120]
[421240727,1777287059086,-500.0,0.0003315,120]
[421240728,1777287059099,-500.0,0.0003315,120]
[421240729,1777287059111,-500.0,0.0003315,120]
[421240730,1777287059124,-3139.33,0.0003315,120]
[421240731,1777287059134,-500.0,0.0003315,3]
[421240732,1777287059144,-500.0,0.0003315,120]
[421240733,1777287059156,-500.0,0.0003315,120]
[421240734,1777287059169,-631.89,0.0003315,120]
[421240735,1777287059181,-500.0,0.0003315,120]
[421240736,1777287059192,-500.0,0.0003315,120]
[421240737,1777287059205,-724.47,0.0003315,120]
[421240738,1777287059219,-830.35,0.0003315,120]
[421240739,1777287059232,-714.42,0.0003315,120]
[421240740,1777287059245,-263.18867513,0.0003315,120]
[421240741,1777287059257,-529.87,0.0003315,120]
[421240742,1777287059268,-500.0,0.0003315,120]
[421240743,1777287059282,-890.53,0.0003315,120]
[421240744,1777287059294,-500.0,0.0003315,120]
[421240745,1777287059307,-633.28,0.0003315,120]
[421240746,1777287059319,-1042.08,0.0003315,120]
[421240747,1777287059331,-500.0,0.0003315,120]
[421240748,1777287059343,-1031.26,0.0003315,120]
[421240749,1777287059355,-500.0,0.0003315,120]
[421240750,1777287059366,-500.0,0.0003315,120]
[421240751,1777287059376,-500.0,0.0003315,120]
[421240752,1777287059387,-789.82,0.0003315,120]
[421240753,1777287059400,-500.0,0.0003315,120]
[421240754,1777287059409,-500.0,0.0003315,120]
[421240755,1777287059422,-500.0,0.0003315,120]
[421240756,1777287059434,-1044.44,0.0003315,7]
[421240757,1777287059446,-500.0,0.0003315,120]
[421240758,1777287059458,-500.0,0.0003315,120]
[421240759,1777287059469,-500.0,0.0003315,120]
[421240760,1777287059481,-500.0,0.0003315,120]
[421240761,1777287059493,-500.0,0.0003315,120]
[421240762,1777287059507,-500.0,0.0003315,120]
[421240763,1777287059519,-2152.64,0.0003315,120]
[421240764,1777287059531,-500.0,0.0003315,120]
[421240765,1777287059542,-500.0,0.0003315,120]
[421240766,1777287059552,-500.0,0.0003315,120]
[421240767,1777287059562,-500.0,0.0003315,120]
[421240768,1777287059573,-951.45,0.0003315,120]
[421240769,1777287059585,-10570.76,0.0003315,120]
[421240770,1777287059598,-953.25,0.0003315,120]
[421240771,1777287059608,-500.0,0.0003315,120]
[421240772,1777287059618,-500.0,0.0003315,120]
[421240773,1777287059632,-500.0,0.0003315,120]
[421240774,1777287059644,-500.0,0.0003315,120]
[421240775,1777287059656,-683.94,0.0003315,120]
[421240776,1777287059669,-500.0,0.0003315,120]
[421240777,1777287059679,-1457.61,0.0003315,120]
[421240778,1777287059690,-500.0,0.0003315,120]
[421240779,1777287059701,-500.0,0.0003315,120]
[421240780,1777287059712,-500.0,0.0003315,120]
[421240781,1777287059724,-853.59,0.0003315,120]
[421240782,1777287059734,-500.0,0.0003315,120]
[421240783,1777287059745,-927.26,0.0003315,120]
[421240784,1777287059757,-692.0,0.0003315,120]
[421240785,1777287059768,-500.0,0.0003315,120]
[421240786,1777287059779,-1072.51,0.0003315,120]
[421240787,1777287059790,-2915.57,0.0003315,120]
[421240788,1777287059801,-500.0,0.0003315,120]
[421240789,1777287059812,-731.44,0.0003315,120]
[421240790,1777287059824,-500.0,0.0003315,120]
[421240791,1777287059835,-701.43,0.0003315,120]
[421240792,1777287059846,-500.0,0.0003315,120]
[421240793,1777287059857,-500.0,0.0003315,120]
[421240794,1777287059868,-954.88,0.0003315,120]
[421240795,1777287059879,-838.15,0.0003315,120]
[421240796,1777287059890,-1783.16,0.0003315,120]
[421240797,1777287059901,-500.0,0.0003315,120]
[421240798,1777287059913,-500.0,0.0003315,120]
[421240799,1777287059924,-500.0,0.0003315,120]
[421240800,1777287059935,-500.0,0.0003315,120]
[421240801,1777287059946,-4705.11,0.0003315,120]
[421240802,1777287059957,-500.0,0.0003315,120]
[421240803,1777287059968,-1730.6,0.0003315,120]
[421240804,1777287059979,-500.0,0.0003315,120]
[421240805,1777287059989,-500.0,0.0003315,120]
[421240806,1777287060000,-1123.77,0.0003315,120]
[421240807,1777287060012,-500.0,0.0003315,120]
[421240808,1777287060023,-500.0,0.0003315,120]
[421240809,1777287060035,-500.0,0.0003315,120]
[421240810,1777287060053,-500.0,0.0003315,120]
[421240811,1777287060064,-1408.68,0.0003315,120]
[421240812,1777287060075,-714.81,0.0003315,120]
[421240813,1777287060086,-1779.59,0.0003315,120]
[421240814,1777287060096,-500.0,0.0003315,120]
[421240815,1777287060107,-667.82,0.0003315,120]
[421240816,1777287060118,-500.0,0.0003315,120]
[421240817,1777287060129,-5381.05,0.0003315,120]
[421240818,1777287060139,-500.0,0.0003315,120]
[421240819,1777287060150,-2035.1,0.0003315,120]
[421240820,1777287060161,-274.581385,0.0003315,7]
[421240821,1777287060171,-922.62,0.0003315,120]
[421240822,1777287060182,-625.44,0.0003315,5]
[421240823,1777287060192,-1690.78,0.0003315,120]
[421240824,1777287060203,-274.581385,0.0003315,7]
[421240825,1777287060213,-674.61,0.0003315,120]
[421240826,1777287060224,-274.581385,0.0003315,7]
[421240827,1777287060235,-500.0,0.0003315,120]
[421240828,1777287060246,-500.0,0.0003315,120]
[421240829,1777287060258,-1164.41,0.0003315,120]
[421240830,1777287060269,-500.0,0.0003315,120]
[421240831,1777287060279,-1082.08,0.0003315,120]
[421240832,1777287060291,-1043.04,0.0003315,120]
[421240833,1777287060302,-500.0,0.0003315,120]
[421240834,1777287060313,-998.96,0.0003315,120]
[421240835,1777287060326,-500.0,0.0003315,120]
[421240836,1777287060337,-784.08,0.0003315,120]
[421240837,1777287060348,-274.581385,0.0003315,7]
[421240838,1777287060359,-1079.64,0.0003315,120]
[421240839,1777287060369,-500.0,0.0003315,120]
[421240840,1777287060380,-1143.94,0.0003315,120]
[421240841,1777287060391,-500.0,0.0003315,120]
[421240842,1777287060401,-1451.57,0.0003315,120]
[421240843,1777287060412,-500.0,0.0003315,120]
[421240844,1777287060422,-500.0,0.0003315,120]
[421240845,1777287060433,-819.21,0.0003315,120]
[421240846,1777287060443,-1138.56,0.0003315,120]
[421240847,1777287060455,-601.09,0.0003315,120]
[421240848,1777287060465,-510.47119662,0.0003315,120]
[421240849,1777287060477,-4201.7,0.0003315,120]
[421240850,1777287060487,-500.0,0.0003315,120]
[421240851,1777287060498,-996.55,0.0003315,120]
[421240852,1777287060509,-1047.55,0.0003315,120]
[421240853,1777287060520,-541.91,0.0003315,120]
[421240854,1777287060530,-500.0,0.0003315,120]
[421240855,1777287060541,-500.0,0.0003315,120]
[421240856,1777287060551,-500.0,0.0003315,120]
[421240857,1777287060561,-795.18,0.0003315,120]
[421240858,1777287060572,-1162.36,0.0003315,120]
[421240859,1777287060583,-500.0,0.0003315,120]
[421240860,1777287060593,-500.0,0.0003315,120]